[Event "*** SCC Grand Prix: Titled Tuesday Blitz"]
[Site "Chess.com"]
[Date "2020.06.23"]
[Round "5"]
[White "diamonds13"]
[Black "2007checkmate"]
[Result "0-1"]
[WhiteElo "2260"]
[BlackElo "2452"]
[TimeControl "180+1"]
[EndTime "10:55:38 PDT"]
[Termination "2007checkmate won by resignation"]

1. d4 {[%clk 0:03:00.9]} 1... d5 {[%clk 0:02:59.5]} 2. c4 {[%clk 0:03:01.4]}
2... dxc4 {[%clk 0:03:00.4]} 3. Nf3 {[%clk 0:03:00.2]} 3... Nf6 {[%clk
0:03:00.1]} 4. e3 {[%clk 0:03:00.4]} 4... c5 {[%clk 0:02:59.8]} 5. Bxc4 {[%clk
0:02:59.9]} 5... cxd4 {[%clk 0:03:00.4]} 6. exd4 {[%clk 0:03:00.1]} 6... e6
{[%clk 0:03:00.7]} 7. O-O {[%clk 0:03:00]} 7... Be7 {[%clk 0:03:01.3]} 8. Nc3
{[%clk 0:02:59.7]} 8... O-O {[%clk 0:03:01.5]} 9. Bg5 {[%clk 0:02:59.4]} 9... a6
{[%clk 0:03:01.7]} 10. a4 {[%clk 0:02:58.4]} 10... Nc6 {[%clk 0:03:01.8]} 11.
Rc1 {[%clk 0:02:57.7]} 11... Nb4 {[%clk 0:03:00.6]} 12. Ne5 {[%clk 0:02:53.1]}
12... Nbd5 {[%clk 0:02:46]} 13. Bd3 {[%clk 0:02:48.6]} 13... h6 {[%clk
0:02:37.1]} 14. Bh4 {[%clk 0:02:47.3]} 14... Nf4 {[%clk 0:02:27.5]} 15. Bb1
{[%clk 0:02:46.3]} 15... N6d5 {[%clk 0:02:22.9]} 16. Bg3 {[%clk 0:02:45.9]}
16... Bg5 {[%clk 0:02:08.8]} 17. Re1 {[%clk 0:02:38.3]} 17... b6 {[%clk
0:01:47.9]} 18. Qc2 {[%clk 0:02:21.8]} 18... f5 {[%clk 0:01:43.4]} 19. Nxd5
{[%clk 0:02:13.2]} 19... Qxd5 {[%clk 0:01:31.1]} 20. Nf3 {[%clk 0:02:03.3]}
20... Nxg2 {[%clk 0:00:49.6]} 21. Nxg5 {[%clk 0:01:52.5]} 21... hxg5 {[%clk
0:00:48]} 22. Qc6 {[%clk 0:01:47.4]} 22... Bb7 {[%clk 0:00:42.8]} 23. Qxe6+
{[%clk 0:01:43.7]} 23... Qxe6 {[%clk 0:00:40.4]} 24. Rxe6 {[%clk 0:01:43.2]}
24... f4 {[%clk 0:00:38.7]} 25. Re7 {[%clk 0:01:41]} 25... fxg3 {[%clk
0:00:27.7]} 26. hxg3 {[%clk 0:01:33.3]} 26... Bd5 {[%clk 0:00:16.2]} 27. Rcc7
{[%clk 0:01:32.2]} 27... Rf7 {[%clk 0:00:15.4]} 28. Rxf7 {[%clk 0:01:31.4]}
28... Bxf7 {[%clk 0:00:16.3]} 29. Kxg2 {[%clk 0:01:30.4]} 29... Rd8 {[%clk
0:00:16.9]} 30. Rb7 {[%clk 0:01:26.5]} 30... Bd5+ {[%clk 0:00:16.6]} 31. f3
{[%clk 0:01:23.7]} 31... Bxb7 {[%clk 0:00:16.6]} 32. d5 {[%clk 0:01:21.8]} 32...
Bxd5 {[%clk 0:00:16.6]} 33. Kf2 {[%clk 0:01:21.4]} 33... Rf8 {[%clk 0:00:16.3]}
34. Ke3 {[%clk 0:01:18.9]} 34... Rxf3+ {[%clk 0:00:15.8]} 35. Kd4 {[%clk
0:01:19.1]} 35... Bc6 {[%clk 0:00:15.8]} 36. g4 {[%clk 0:01:19.1]} 36... Rf4+
{[%clk 0:00:15.8]} 37. Ke5 {[%clk 0:01:18.5]} 37... Rxg4 {[%clk 0:00:16.3]} 38.
Kd6 {[%clk 0:01:19]} 38... Bxa4 {[%clk 0:00:15.3]} 39. Kc7 {[%clk 0:01:19.1]}
39... b5 {[%clk 0:00:14.8]} 40. Kb6 {[%clk 0:01:19]} 40... Rb4 {[%clk
0:00:15.3]} 41. Ba2+ {[%clk 0:01:17.4]} 41... Bb3 {[%clk 0:00:15.7]} 42. Bb1
{[%clk 0:01:16.4]} 42... g4 {[%clk 0:00:15.8]} 0-1

[Event "*** SCC Grand Prix: Titled Tuesday Blitz"]
[Site "Chess.com"]
[Date "2020.06.23"]
[Round "5"]
[White "londonkid"]
[Black "NMZanette"]
[Result "0-1"]
[WhiteElo "2328"]
[BlackElo "2163"]
[TimeControl "180+1"]
[EndTime "10:55:39 PDT"]
[Termination "NMZanette won by resignation"]

1. d4 {[%clk 0:03:00.9]} 1... f5 {[%clk 0:02:59.7]} 2. Nc3 {[%clk 0:03:00.8]}
2... Nf6 {[%clk 0:02:59.8]} 3. Bg5 {[%clk 0:03:00.1]} 3... c6 {[%clk 0:03:00]}
4. Bxf6 {[%clk 0:02:56]} 4... exf6 {[%clk 0:03:00.1]} 5. e3 {[%clk 0:02:55]}
5... Qa5 {[%clk 0:02:56.4]} 6. Bd3 {[%clk 0:02:53.2]} 6... Ba3 {[%clk
0:02:53.3]} 7. Qc1 {[%clk 0:02:13.1]} 7... O-O {[%clk 0:02:50.6]} 8. Ne2 {[%clk
0:02:13.3]} 8... Be7 {[%clk 0:02:46.6]} 9. O-O {[%clk 0:02:12.4]} 9... d5 {[%clk
0:02:47.2]} 10. Ng3 {[%clk 0:02:11.1]} 10... g6 {[%clk 0:02:45.8]} 11. a3 {[%clk
0:02:10.9]} 11... Be6 {[%clk 0:02:44.5]} 12. b4 {[%clk 0:02:10.8]} 12... Qc7
{[%clk 0:02:41.8]} 13. Na4 {[%clk 0:02:09.3]} 13... b6 {[%clk 0:02:38.6]} 14. c4
{[%clk 0:02:08.5]} 14... Nd7 {[%clk 0:02:34.9]} 15. cxd5 {[%clk 0:02:05]} 15...
Bxd5 {[%clk 0:02:34.5]} 16. Bc4 {[%clk 0:02:04.7]} 16... Qd6 {[%clk 0:02:32.7]}
17. b5 {[%clk 0:01:57.3]} 17... cxb5 {[%clk 0:02:27]} 18. Bxd5+ {[%clk
0:01:55.2]} 18... Qxd5 {[%clk 0:02:27.2]} 19. Nc3 {[%clk 0:01:55.3]} 19... Qc4
{[%clk 0:02:27.2]} 20. Qb2 {[%clk 0:01:53.4]} 20... a6 {[%clk 0:02:25.8]} 21.
Rac1 {[%clk 0:01:50.6]} 21... Qf7 {[%clk 0:02:20.5]} 22. Rfd1 {[%clk 0:01:32.9]}
22... Rac8 {[%clk 0:02:17.8]} 23. d5 {[%clk 0:01:28.7]} 23... Bd6 {[%clk
0:02:17.3]} 24. Nge2 {[%clk 0:01:26.1]} 24... Qe7 {[%clk 0:02:13.9]} 25. Nd4
{[%clk 0:01:24.5]} 25... Bxa3 {[%clk 0:02:13.6]} 26. Qb3 {[%clk 0:01:20.9]}
26... Bxc1 {[%clk 0:02:04.5]} 27. d6+ {[%clk 0:01:15.5]} 27... Qf7 {[%clk
0:02:04.7]} 28. Nd5 {[%clk 0:01:15.8]} 28... Nc5 {[%clk 0:01:56.3]} 29. Ne7+
{[%clk 0:01:10.7]} 29... Kh8 {[%clk 0:01:53.1]} 30. Qc2 {[%clk 0:00:58.6]} 30...
Rcd8 {[%clk 0:01:41.2]} 31. Ndc6 {[%clk 0:00:55.2]} 31... Rxd6 {[%clk
0:01:29.5]} 32. Rxd6 {[%clk 0:00:52.4]} 32... Ba3 {[%clk 0:01:29.4]} 33. h3
{[%clk 0:00:45.5]} 33... Ne4 {[%clk 0:01:26.7]} 34. Rd7 {[%clk 0:00:45.5]} 34...
Qe6 {[%clk 0:01:20.8]} 35. Qd3 {[%clk 0:00:39.3]} 35... Nc5 {[%clk 0:01:18.2]}
36. Qxa3 {[%clk 0:00:36.1]} 36... Nxd7 {[%clk 0:01:18.3]} 37. Qxa6 {[%clk
0:00:32.2]} 37... Re8 {[%clk 0:01:11.4]} 38. Qb7 {[%clk 0:00:27.1]} 38... Rxe7
{[%clk 0:01:06.4]} 39. Nxe7 {[%clk 0:00:26.5]} 39... Qxe7 {[%clk 0:01:06.5]} 40.
Qc8+ {[%clk 0:00:27]} 40... Kg7 {[%clk 0:01:05.7]} 0-1

[Event "*** SCC Grand Prix: Titled Tuesday Blitz"]
[Site "Chess.com"]
[Date "2020.06.23"]
[Round "5"]
[White "AttilaTurzo"]
[Black "Camels1981"]
[Result "1-0"]
[WhiteElo "2498"]
[BlackElo "2322"]
[TimeControl "180+1"]
[EndTime "10:55:41 PDT"]
[Termination "AttilaTurzo won on time"]

1. e4 {[%clk 0:03:00.9]} 1... c5 {[%clk 0:02:58.9]} 2. Nf3 {[%clk 0:03:00.6]}
2... e6 {[%clk 0:02:57.2]} 3. d4 {[%clk 0:03:01.5]} 3... cxd4 {[%clk 0:02:58.1]}
4. Nxd4 {[%clk 0:03:02.4]} 4... Nc6 {[%clk 0:02:57.5]} 5. Nc3 {[%clk 0:03:00.5]}
5... Nf6 {[%clk 0:02:51.8]} 6. Ndb5 {[%clk 0:02:53.8]} 6... d6 {[%clk
0:02:51.4]} 7. Bf4 {[%clk 0:02:51.8]} 7... e5 {[%clk 0:02:50.8]} 8. Bg5 {[%clk
0:02:51.2]} 8... a6 {[%clk 0:02:50.8]} 9. Na3 {[%clk 0:02:50.1]} 9... b5 {[%clk
0:02:32.7]} 10. Nd5 {[%clk 0:02:49.3]} 10... Be7 {[%clk 0:02:32.4]} 11. Bxf6
{[%clk 0:02:46.1]} 11... Bxf6 {[%clk 0:02:32]} 12. c4 {[%clk 0:02:44]} 12... b4
{[%clk 0:02:26.7]} 13. Nc2 {[%clk 0:02:43.4]} 13... Rb8 {[%clk 0:02:23]} 14. b3
{[%clk 0:02:40.6]} 14... Bg5 {[%clk 0:02:19.6]} 15. Bd3 {[%clk 0:02:38.2]} 15...
O-O {[%clk 0:02:17.1]} 16. O-O {[%clk 0:02:37.9]} 16... Ne7 {[%clk 0:02:13.6]}
17. Ncxb4 {[%clk 0:02:32.9]} 17... Nxd5 {[%clk 0:02:02.6]} 18. Nxd5 {[%clk
0:02:25.6]} 18... g6 {[%clk 0:01:54.8]} 19. b4 {[%clk 0:02:15.2]} 19... f5
{[%clk 0:01:53.5]} 20. a4 {[%clk 0:02:12.8]} 20... f4 {[%clk 0:01:40.3]} 21. f3
{[%clk 0:02:12.3]} 21... Be6 {[%clk 0:01:21.7]} 22. a5 {[%clk 0:01:47.2]} 22...
Bh4 {[%clk 0:00:29.3]} 23. b5 {[%clk 0:01:42.9]} 23... g5 {[%clk 0:00:23.9]} 24.
Nb4 {[%clk 0:01:27.7]} 24... axb5 {[%clk 0:00:12.8]} 25. Nc6 {[%clk 0:01:27.3]}
25... Qc7 {[%clk 0:00:09.7]} 26. cxb5 {[%clk 0:01:23.8]} 26... Ra8 {[%clk
0:00:06.3]} 27. Rc1 {[%clk 0:01:21.9]} 27... g4 {[%clk 0:00:04]} 28. fxg4 {[%clk
0:01:20.6]} 28... Kh8 {[%clk 0:00:03.2]} 29. b6 {[%clk 0:01:19.8]} 29... Qb7
{[%clk 0:00:02.7]} 30. Bc4 {[%clk 0:01:09.7]} 30... Bd7 {[%clk 0:00:01.8]} 31.
Bd5 {[%clk 0:01:09.1]} 1-0

[Event "*** SCC Grand Prix: Titled Tuesday Blitz"]
[Site "Chess.com"]
[Date "2020.06.23"]
[Round "5"]
[White "Alopekos"]
[Black "Volodar_Murzin"]
[Result "0-1"]
[WhiteElo "2452"]
[BlackElo "2706"]
[TimeControl "180+1"]
[EndTime "10:55:43 PDT"]
[Termination "Volodar_Murzin won by resignation"]

1. c4 {[%clk 0:03:00.9]} 1... Nf6 {[%clk 0:02:53.6]} 2. Nc3 {[%clk 0:02:59.7]}
2... g6 {[%clk 0:02:54.1]} 3. d3 {[%clk 0:02:59.1]} 3... Bg7 {[%clk 0:02:53.2]}
4. g3 {[%clk 0:02:59.5]} 4... O-O {[%clk 0:02:48.5]} 5. Bg2 {[%clk 0:02:59.7]}
5... d6 {[%clk 0:02:43.6]} 6. Nf3 {[%clk 0:02:59.9]} 6... Nbd7 {[%clk
0:02:43.6]} 7. O-O {[%clk 0:02:58.9]} 7... e5 {[%clk 0:02:44.1]} 8. Bg5 {[%clk
0:02:33.7]} 8... h6 {[%clk 0:02:42.5]} 9. Be3 {[%clk 0:02:27.9]} 9... a5 {[%clk
0:02:41.3]} 10. a3 {[%clk 0:02:24.6]} 10... Kh7 {[%clk 0:02:38.5]} 11. d4 {[%clk
0:02:16.8]} 11... Ng4 {[%clk 0:02:35.6]} 12. dxe5 {[%clk 0:02:10.6]} 12... Nxe3
{[%clk 0:02:32.9]} 13. fxe3 {[%clk 0:02:11.5]} 13... Nxe5 {[%clk 0:02:33]} 14.
Nxe5 {[%clk 0:02:10.7]} 14... Bxe5 {[%clk 0:02:33.9]} 15. Nd5 {[%clk 0:01:44.2]}
15... c6 {[%clk 0:02:30.5]} 16. Nc3 {[%clk 0:01:43.5]} 16... Qb6 {[%clk
0:02:28.8]} 17. Rb1 {[%clk 0:01:39.4]} 17... Qxe3+ {[%clk 0:02:24.7]} 18. Kh1
{[%clk 0:01:38.7]} 18... Be6 {[%clk 0:02:25.1]} 19. Rf3 {[%clk 0:01:35.3]} 19...
Qa7 {[%clk 0:02:18.7]} 20. Ne4 {[%clk 0:01:27.9]} 20... Rad8 {[%clk 0:02:14.3]}
21. Nf6+ {[%clk 0:01:22.8]} 21... Kg7 {[%clk 0:02:11.9]} 22. Ne4 {[%clk
0:01:18]} 22... Bxc4 {[%clk 0:02:09.8]} 23. Qc2 {[%clk 0:01:15.8]} 23... Be6
{[%clk 0:02:07.3]} 24. Rbf1 {[%clk 0:01:11.6]} 24... f5 {[%clk 0:01:55.1]} 25.
Nc3 {[%clk 0:01:09.6]} 25... d5 {[%clk 0:01:54.9]} 26. Qd2 {[%clk 0:00:57]}
26... Rde8 {[%clk 0:01:49.3]} 27. Re3 {[%clk 0:00:50.1]} 27... Bf6 {[%clk
0:01:48.7]} 28. Ref3 {[%clk 0:00:51]} 28... h5 {[%clk 0:01:48.1]} 29. Qf4 {[%clk
0:00:41.1]} 29... Qd4 {[%clk 0:01:45.2]} 30. Qc7+ {[%clk 0:00:40.2]} 30... Rf7
{[%clk 0:01:42.7]} 31. Qxa5 {[%clk 0:00:40.1]} 31... Qd2 {[%clk 0:01:39.5]} 32.
Qb4 {[%clk 0:00:36.6]} 32... Bc8 {[%clk 0:01:27]} 33. Rd1 {[%clk 0:00:25.9]}
33... Qh6 {[%clk 0:01:23.5]} 34. Rfd3 {[%clk 0:00:20.1]} 34... Rh8 {[%clk
0:01:14.4]} 35. Qf4 {[%clk 0:00:19.5]} 35... h4 {[%clk 0:01:03.1]} 36. gxh4
{[%clk 0:00:20.4]} 36... Qxf4 {[%clk 0:01:01.1]} 0-1

[Event "*** SCC Grand Prix: Titled Tuesday Blitz"]
[Site "Chess.com"]
[Date "2020.06.23"]
[Round "5"]
[White "2008king"]
[Black "MasterKroket"]
[Result "1-0"]
[WhiteElo "2230"]
[BlackElo "2393"]
[TimeControl "180+1"]
[EndTime "10:55:44 PDT"]
[Termination "2008king won by checkmate"]

1. e4 {[%clk 0:03:00.9]} 1... c5 {[%clk 0:03:00.3]} 2. Nf3 {[%clk 0:03:01.2]}
2... e6 {[%clk 0:03:00.9]} 3. d4 {[%clk 0:03:01.4]} 3... cxd4 {[%clk 0:03:01.8]}
4. Nxd4 {[%clk 0:03:01.8]} 4... Nc6 {[%clk 0:03:02.6]} 5. Nc3 {[%clk 0:03:01.9]}
5... Qc7 {[%clk 0:03:03.1]} 6. Be3 {[%clk 0:03:01.6]} 6... a6 {[%clk 0:03:03.8]}
7. Qf3 {[%clk 0:03:00.8]} 7... b5 {[%clk 0:03:04.1]} 8. Qg3 {[%clk 0:03:00.4]}
8... Qxg3 {[%clk 0:03:03.5]} 9. hxg3 {[%clk 0:03:01.3]} 9... Bb7 {[%clk
0:03:04]} 10. f3 {[%clk 0:03:01]} 10... Nf6 {[%clk 0:03:02.1]} 11. O-O-O {[%clk
0:03:01.3]} 11... Rc8 {[%clk 0:03:00.2]} 12. g4 {[%clk 0:03:01.6]} 12... d6
{[%clk 0:02:56.2]} 13. Nxc6 {[%clk 0:02:49.2]} 13... Bxc6 {[%clk 0:02:56.1]} 14.
Ne2 {[%clk 0:02:49.9]} 14... e5 {[%clk 0:02:53]} 15. g5 {[%clk 0:02:46.1]} 15...
Nd7 {[%clk 0:02:50.9]} 16. Nc3 {[%clk 0:02:46.6]} 16... b4 {[%clk 0:02:40.1]}
17. Nd5 {[%clk 0:02:45.1]} 17... a5 {[%clk 0:02:27.2]} 18. Bc4 {[%clk
0:02:14.7]} 18... Be7 {[%clk 0:02:19.4]} 19. g6 {[%clk 0:01:53.6]} 19... fxg6
{[%clk 0:02:14.7]} 20. b3 {[%clk 0:01:34.8]} 20... h6 {[%clk 0:02:01.5]} 21. f4
{[%clk 0:01:20.1]} 21... exf4 {[%clk 0:01:58.3]} 22. Bxf4 {[%clk 0:01:21]} 22...
Ne5 {[%clk 0:01:58.9]} 23. Bxe5 {[%clk 0:01:15.2]} 23... dxe5 {[%clk 0:01:57.8]}
24. Rhf1 {[%clk 0:01:15.8]} 24... Bg5+ {[%clk 0:01:46]} 25. Kb2 {[%clk
0:01:15.1]} 25... Rf8 {[%clk 0:01:40.5]} 26. Nb6 {[%clk 0:01:09.3]} 26... Rb8
{[%clk 0:01:32.3]} 27. Rxf8+ {[%clk 0:01:04.9]} 27... Kxf8 {[%clk 0:01:30.3]}
28. Nd7+ {[%clk 0:01:05.8]} 28... Bxd7 {[%clk 0:01:29.1]} 29. Rxd7 {[%clk
0:01:06.7]} 29... Bf6 {[%clk 0:01:13.7]} 30. Rf7+ {[%clk 0:00:59.8]} 30... Ke8
{[%clk 0:01:12.8]} 31. Ra7 {[%clk 0:01:00.1]} 31... Rd8 {[%clk 0:01:08.4]} 32.
Bf7+ {[%clk 0:00:57.2]} 32... Kf8 {[%clk 0:01:07.5]} 33. Bxg6 {[%clk 0:00:58.1]}
33... Bg5 {[%clk 0:01:01.9]} 34. Bh5 {[%clk 0:00:31.7]} 34... Bd2 {[%clk
0:00:59.4]} 35. Rxa5 {[%clk 0:00:29.6]} 35... Bc3+ {[%clk 0:00:59.6]} 36. Kc1
{[%clk 0:00:29.6]} 36... Rd2 {[%clk 0:00:48.1]} 37. Rxe5 {[%clk 0:00:24.2]}
37... Rxg2 {[%clk 0:00:48.2]} 38. Re8# {[%clk 0:00:24.2]} 1-0

[Event "*** SCC Grand Prix: Titled Tuesday Blitz"]
[Site "Chess.com"]
[Date "2020.06.23"]
[Round "5"]
[White "bratkoo"]
[Black "Chernobay_Artem"]
[Result "0-1"]
[WhiteElo "2411"]
[BlackElo "2599"]
[TimeControl "180+1"]
[EndTime "10:55:46 PDT"]
[Termination "Chernobay_Artem won by checkmate"]

1. e4 {[%clk 0:03:00.9]} 1... c5 {[%clk 0:02:59.2]} 2. Nf3 {[%clk 0:02:53.4]}
2... d6 {[%clk 0:02:59.3]} 3. d4 {[%clk 0:02:52.9]} 3... cxd4 {[%clk 0:02:59.7]}
4. Nxd4 {[%clk 0:02:53.3]} 4... Nf6 {[%clk 0:03:00.4]} 5. Nc3 {[%clk 0:02:53.2]}
5... a6 {[%clk 0:03:00.9]} 6. Be3 {[%clk 0:02:53.4]} 6... e6 {[%clk 0:03:00.7]}
7. f3 {[%clk 0:02:52.6]} 7... b5 {[%clk 0:03:00.5]} 8. Qd2 {[%clk 0:02:52.4]}
8... Nbd7 {[%clk 0:03:00.6]} 9. g4 {[%clk 0:02:52.4]} 9... Nb6 {[%clk
0:03:00.5]} 10. g5 {[%clk 0:02:52.6]} 10... Nfd7 {[%clk 0:03:00.5]} 11. Bd3
{[%clk 0:02:49.3]} 11... Bb7 {[%clk 0:02:59.8]} 12. Nce2 {[%clk 0:02:48.6]}
12... Be7 {[%clk 0:02:54.2]} 13. h4 {[%clk 0:02:48.5]} 13... Ne5 {[%clk
0:02:53.6]} 14. f4 {[%clk 0:02:42.4]} 14... Nec4 {[%clk 0:02:52.1]} 15. Qc1
{[%clk 0:02:42.3]} 15... g6 {[%clk 0:02:25.5]} 16. Bf2 {[%clk 0:02:35]} 16... e5
{[%clk 0:02:21.4]} 17. Nf3 {[%clk 0:02:32]} 17... d5 {[%clk 0:02:21.3]} 18. Bxc4
{[%clk 0:02:20.6]} 18... Nxc4 {[%clk 0:02:18]} 19. Nxe5 {[%clk 0:02:20.4]} 19...
Nxe5 {[%clk 0:02:09.6]} 20. fxe5 {[%clk 0:02:20.2]} 20... dxe4 {[%clk 0:02:10]}
21. Bd4 {[%clk 0:02:20.8]} 21... Qa5+ {[%clk 0:01:43.4]} 22. c3 {[%clk
0:02:14.5]} 22... O-O-O {[%clk 0:01:40.6]} 23. Qf4 {[%clk 0:02:14.2]} 23... Rhf8
{[%clk 0:01:30.8]} 24. O-O {[%clk 0:02:10.8]} 24... Qc7 {[%clk 0:01:27.4]} 25.
a4 {[%clk 0:02:09.5]} 25... bxa4 {[%clk 0:01:10.8]} 26. Rxa4 {[%clk 0:02:07.6]}
26... Rd7 {[%clk 0:01:03.7]} 27. Ng3 {[%clk 0:02:04.3]} 27... e3 {[%clk
0:00:51.2]} 28. Qxe3 {[%clk 0:01:59.7]} 28... Qc6 {[%clk 0:00:49.8]} 29. Rf2
{[%clk 0:01:25.9]} 29... Qxa4 {[%clk 0:00:49.4]} 30. Bc5 {[%clk 0:01:12.1]}
30... Qc6 {[%clk 0:00:43]} 31. Bxe7 {[%clk 0:01:11.7]} 31... Rxe7 {[%clk
0:00:43.9]} 32. Qd4 {[%clk 0:01:07.2]} 32... Rd8 {[%clk 0:00:42.5]} 33. Qg4+
{[%clk 0:01:06.9]} 33... Kb8 {[%clk 0:00:41.7]} 34. Kh2 {[%clk 0:01:04.1]} 34...
Ka8 {[%clk 0:00:37.9]} 35. Qf4 {[%clk 0:01:02.9]} 35... Rd1 {[%clk 0:00:36.4]}
36. h5 {[%clk 0:00:58.4]} 36... Red7 {[%clk 0:00:33.9]} 37. e6 {[%clk
0:00:52.7]} 37... Rh1+ {[%clk 0:00:31.4]} 38. Nxh1 {[%clk 0:00:52.1]} 38...
Qxh1+ {[%clk 0:00:32.3]} 39. Kg3 {[%clk 0:00:51.9]} 39... Rd3+ {[%clk 0:00:33]}
40. Kg4 {[%clk 0:00:51.9]} 40... Qxh5# {[%clk 0:00:32.4]} 0-1

[Event "*** SCC Grand Prix: Titled Tuesday Blitz"]
[Site "Chess.com"]
[Date "2020.06.23"]
[Round "5"]
[White "mr65"]
[Black "ChocolateRoses"]
[Result "0-1"]
[WhiteElo "2083"]
[BlackElo "2277"]
[TimeControl "180+1"]
[EndTime "10:55:49 PDT"]
[Termination "ChocolateRoses won on time"]

1. e4 {[%clk 0:03:00.9]} 1... e6 {[%clk 0:02:55.3]} 2. d4 {[%clk 0:02:59.7]}
2... d5 {[%clk 0:02:55.7]} 3. Nc3 {[%clk 0:02:59.4]} 3... Bb4 {[%clk 0:02:54.2]}
4. e5 {[%clk 0:02:58.4]} 4... Ne7 {[%clk 0:02:54.2]} 5. a3 {[%clk 0:02:57.4]}
5... Bxc3+ {[%clk 0:02:54.5]} 6. bxc3 {[%clk 0:02:56]} 6... c5 {[%clk
0:02:55.4]} 7. Nf3 {[%clk 0:02:54.6]} 7... b6 {[%clk 0:02:53.3]} 8. Bb5+ {[%clk
0:02:47.3]} 8... Bd7 {[%clk 0:02:53.1]} 9. Be2 {[%clk 0:02:45.6]} 9... Ba4
{[%clk 0:02:52.5]} 10. c4 {[%clk 0:02:38.2]} 10... dxc4 {[%clk 0:01:50.1]} 11.
dxc5 {[%clk 0:02:30.1]} 11... Qxd1+ {[%clk 0:01:51]} 12. Bxd1 {[%clk 0:02:24.5]}
12... bxc5 {[%clk 0:01:50.1]} 13. Be3 {[%clk 0:02:21.7]} 13... Nd7 {[%clk
0:01:47.2]} 14. O-O {[%clk 0:02:19.5]} 14... Nd5 {[%clk 0:01:43.6]} 15. Bd2
{[%clk 0:02:12.6]} 15... c3 {[%clk 0:01:31.5]} 16. Be1 {[%clk 0:01:56.6]} 16...
Bb5 {[%clk 0:01:30]} 17. Rb1 {[%clk 0:01:48.8]} 17... Bxf1 {[%clk 0:01:28.6]}
18. Kxf1 {[%clk 0:01:48.6]} 18... Ke7 {[%clk 0:01:21.2]} 19. g3 {[%clk
0:01:36.6]} 19... Rab8 {[%clk 0:01:20.9]} 20. Rb3 {[%clk 0:01:35.8]} 20... Rxb3
{[%clk 0:01:05.3]} 21. cxb3 {[%clk 0:01:34.6]} 21... f6 {[%clk 0:01:04.9]} 22.
exf6+ {[%clk 0:01:33]} 22... gxf6 {[%clk 0:01:05.8]} 23. Bc2 {[%clk 0:01:29.9]}
23... h6 {[%clk 0:01:02.3]} 24. Nh4 {[%clk 0:01:29.4]} 24... Kd6 {[%clk
0:01:00.8]} 25. Ke2 {[%clk 0:01:09.1]} 25... Ne5 {[%clk 0:01:00]} 26. f4 {[%clk
0:01:06.7]} 26... Nc6 {[%clk 0:00:58.8]} 0-1

[Event "*** SCC Grand Prix: Titled Tuesday Blitz"]
[Site "Chess.com"]
[Date "2020.06.23"]
[Round "5"]
[White "Onischuk_V"]
[Black "Evgeny81"]
[Result "1-0"]
[WhiteElo "2885"]
[BlackElo "2798"]
[TimeControl "180+1"]
[EndTime "10:55:53 PDT"]
[Termination "Onischuk_V won by resignation"]

1. e4 {[%clk 0:02:59.5]} 1... c5 {[%clk 0:02:59.8]} 2. Ne2 {[%clk 0:02:59.3]}
2... Nc6 {[%clk 0:02:58]} 3. Nbc3 {[%clk 0:02:56.7]} 3... e6 {[%clk 0:02:54.4]}
4. g3 {[%clk 0:02:56]} 4... Nf6 {[%clk 0:02:51.8]} 5. Bg2 {[%clk 0:02:56]} 5...
d5 {[%clk 0:02:47.4]} 6. exd5 {[%clk 0:02:54.8]} 6... exd5 {[%clk 0:02:48.3]} 7.
d4 {[%clk 0:02:54.6]} 7... cxd4 {[%clk 0:02:44.3]} 8. Nxd4 {[%clk 0:02:54.1]}
8... Bg4 {[%clk 0:02:43.6]} 9. Nce2 {[%clk 0:02:46.3]} 9... Bc5 {[%clk
0:02:27.8]} 10. Nb3 {[%clk 0:02:41.4]} 10... Bb6 {[%clk 0:02:23.8]} 11. h3
{[%clk 0:02:41.5]} 11... Bh5 {[%clk 0:02:19]} 12. O-O {[%clk 0:02:35.7]} 12...
O-O {[%clk 0:02:18.9]} 13. g4 {[%clk 0:02:29]} 13... Bg6 {[%clk 0:02:18.1]} 14.
Bg5 {[%clk 0:02:29.1]} 14... h6 {[%clk 0:02:12.1]} 15. Bh4 {[%clk 0:02:28.9]}
15... Re8 {[%clk 0:02:07.1]} 16. Nf4 {[%clk 0:02:25.1]} 16... Be4 {[%clk
0:02:00.6]} 17. Bxf6 {[%clk 0:01:55.4]} 17... Qxf6 {[%clk 0:01:58.8]} 18. Nxd5
{[%clk 0:01:54.3]} 18... Bxd5 {[%clk 0:01:52.3]} 19. Bxd5 {[%clk 0:01:54.3]}
19... Qxb2 {[%clk 0:01:38.9]} 20. c4 {[%clk 0:01:46.3]} 20... Bc7 {[%clk
0:01:10]} 21. Qf3 {[%clk 0:01:39.1]} 21... Ne5 {[%clk 0:01:06.1]} 22. Qf5 {[%clk
0:01:31.7]} 22... g6 {[%clk 0:01:05.3]} 23. Qf6 {[%clk 0:01:30.3]} 23... Bd8
{[%clk 0:00:58.9]} 24. Qf4 {[%clk 0:01:22.8]} 24... Bg5 {[%clk 0:00:56.6]} 25.
Qg3 {[%clk 0:01:22.9]} 25... Nc6 {[%clk 0:00:34.3]} 26. Nc5 {[%clk 0:01:18.7]}
26... Nd4 {[%clk 0:00:32.2]} 27. Kh1 {[%clk 0:01:18.2]} 27... Ne2 {[%clk
0:00:30.7]} 28. Qf3 {[%clk 0:01:17.8]} 28... Nf4 {[%clk 0:00:27.3]} 29. Nd3
{[%clk 0:01:12.7]} 29... Qd4 {[%clk 0:00:21.9]} 30. Nxf4 {[%clk 0:01:12]} 30...
Bxf4 {[%clk 0:00:16.5]} 31. Rad1 {[%clk 0:01:10.7]} 31... Qe5 {[%clk 0:00:14.1]}
32. Bxb7 {[%clk 0:01:10.3]} 32... Rad8 {[%clk 0:00:13.4]} 33. Bd5 {[%clk
0:01:04.8]} 33... Re7 {[%clk 0:00:09.6]} 34. Kg2 {[%clk 0:01:03]} 34... Kg7
{[%clk 0:00:09.1]} 35. Rfe1 {[%clk 0:01:02.5]} 1-0